fUST/lending_fUST_20250515
["ID","MTS","AMOUNT","RATE_DAILY","PERIOD"]
[361168239,1747319436301,-491.31862,0.00017246,2]
[361168240,1747319436310,-450.0,0.00017246,2]
[361168241,1747319436320,-576.062218,0.00017246,2]
[361168242,1747319436329,-576.062218,0.00017246,2]
[361168243,1747319436338,-620.38,0.00017246,2]
[361168244,1747319436348,-318.361772,0.00017246,2]
[361168245,1747319436357,-318.361772,0.00017246,2]
[361168246,1747319436368,-340.71,0.00017246,2]
[361168247,1747319436377,-450.0,0.00017247,2]
[361168248,1747319436387,-251.71,0.00017247,2]
[361168249,1747319436396,-450.0,0.00017247,2]
[361168250,1747319436405,-151.0,0.00017247,2]
[361168251,1747319436415,-450.0,0.00017247,2]
[361168252,1747319436424,-151.0,0.00017247,2]
[361168253,1747319436434,-4741.97302254,0.00017251,2]
[361168254,1747319436443,-450.0,0.0001726,2]
[361168255,1747319436453,-551.45,0.0001726,2]
[361168256,1747319436462,-516.00255438,0.0001726,2]
[361168257,1747319436472,-450.0,0.0001726,2]
[361168258,1747319436481,-167.12951954,0.00017296,2]
[361168259,1747319436491,-450.0,0.00017305,2]
[361168260,1747319436501,-471.61,0.00017305,2]
[361168261,1747319436511,-450.0,0.00017305,2]
[361168262,1747319436521,-450.0,0.00017305,2]
[361168263,1747319436531,-431.07690647,0.00017383,2]
[361168264,1747319436540,-182.4179353,0.00017383,2]
[361168265,1747319436550,-450.0,0.00017383,2]
[361168266,1747319436559,-327.25,0.00017383,2]
[361168267,1747319436568,-378.97,0.00017383,2]
[361168268,1747319436578,-450.0,0.00017383,2]
[361168269,1747319436587,-215.35,0.00017383,2]
[361168270,1747319436597,-450.0,0.00017383,2]
[361168271,1747319436606,-450.0,0.00017383,2]
[361168272,1747319436618,-450.0,0.00017383,2]
[361168273,1747319436628,-374.2,0.00017383,2]
[361168274,1747319436638,-620.38,0.00017383,2]
[361168275,1747319436647,-155.06,0.00017384,2]
[361168276,1747319436657,-151.0,0.00017384,2]
[361168277,1747319436666,-151.0,0.00017384,2]
[361168278,1747319436677,-151.0,0.00017384,2]
[361168279,1747319436686,-151.0,0.00017384,2]
[361168280,1747319436695,-340.1,0.00017384,2]
[361168281,1747319436705,-450.0,0.00017384,2]
[361168282,1747319436714,-586.815331,0.00017384,2]
[361168283,1747319436724,-586.815331,0.00017384,2]
[361168284,1747319436733,-450.0,0.00017397,2]
[361168285,1747319436743,-551.45,0.00017397,2]
[361168286,1747319436753,-450.0,0.00017397,2]
[361168287,1747319436763,-450.0,0.00017442,2]
[361168288,1747319436773,-471.61,0.00017442,2]
[361168289,1747319436782,-450.0,0.00017442,2]
[361168290,1747319436792,-450.0,0.00017442,2]
[361168291,1747319436801,-450.0,0.0001752,2]
[361168292,1747319436810,-450.0,0.0001752,2]
[361168293,1747319436819,-167.86,0.0001752,2]
[361168294,1747319436829,-450.0,0.0001752,2]
[361168295,1747319436838,-450.0,0.0001752,2]
[361168296,1747319436847,-620.38,0.0001752,2]
[361168297,1747319436857,-500.0,0.0001752,2]
[361168298,1747319436866,-210.19395515,0.0001752,2]
[361168299,1747319436875,-539.98880613,0.0001752,2]
[361168300,1747319436888,-151.0,0.00017521,2]
[361168301,1747319436898,-151.0,0.00017521,2]
[361168302,1747319436907,-151.0,0.00017521,2]
[361168303,1747319436917,-151.0,0.00017521,2]
[361168304,1747319436926,-151.0,0.00017521,2]
[361168305,1747319436936,-151.0,0.00017521,2]
[361168306,1747319436945,-151.0,0.00017521,2]
[361168307,1747319436954,-231.643866,0.00017521,2]
[361168308,1747319436964,-231.643866,0.00017521,2]
[361168309,1747319436973,-506.893515,0.00017521,2]
[361168310,1747319436983,-506.893515,0.00017521,2]
[361168311,1747319436993,-1131.815404,0.00017521,2]
[361168312,1747319437002,-1131.815404,0.00017521,2]
[361168313,1747319437011,-226.0,0.00017521,2]
[361168314,1747319437021,-151.0,0.00017521,2]
[361168315,1747319437030,-1737.257871,0.00017521,2]
[361168316,1747319437043,-1737.257871,0.00017521,2]
[361168317,1747319437052,-1264.315097,0.00017521,2]
[361168318,1747319437063,-1264.315097,0.00017521,2]
[361168319,1747319437072,-151.0,0.00017521,2]
[361168320,1747319437082,-151.0,0.00017521,2]
[361168321,1747319437092,-151.0,0.00017521,2]
[361168322,1747319437101,-491.31862,0.00017521,2]
[361168323,1747319437111,-491.31862,0.00017521,2]
[361168324,1747319437125,-576.062218,0.00017521,2]
[361168325,1747319437136,-576.062218,0.00017521,2]
[361168326,1747319437152,-318.361772,0.00017521,2]
[361168327,1747319437161,-318.361772,0.00017521,2]
[361168328,1747319437171,-151.0,0.00017534,2]
[361168329,1747319437180,-210.133356,0.00017534,2]
[361168330,1747319437190,-210.133356,0.00017534,2]
[361168331,1747319437200,-151.0,0.00017534,2]
[361168332,1747319437210,-450.0,0.00017534,2]
[361168333,1747319437220,-551.45,0.00017534,2]
[361168334,1747319437230,-450.0,0.00017534,2]
[361168335,1747319437240,-2094.02165267,0.00017565,2]
[361168336,1747319437249,-230.48,0.00017579,2]
[361168337,1747319437259,-471.61,0.00017579,2]
[361168338,1747319437269,-450.0,0.00017579,2]
[361168339,1747319437279,-450.0,0.00017579,2]
[361168340,1747319437288,-167.12951954,0.00017583,2]
[361168341,1747319437298,-153.0,0.00017589,2]
[361168342,1747319437307,-153.0,0.00017589,2]
[361168343,1747319437317,-153.0,0.00017589,2]
[361168344,1747319437328,-153.0,0.00017589,2]
[361168345,1747319437338,-1146.4340626,0.00017589,2]
[361168346,1747319437348,-153.0,0.00017589,2]
[361168347,1747319437357,-404.0,0.00017629,2]
[361168348,1747319437370,-450.0,0.00017657,2]
[361168349,1747319437380,-450.0,0.00017657,2]
[361168350,1747319437391,-450.0,0.00017657,2]
[361168351,1747319437401,-450.0,0.00017657,2]
[361168352,1747319437412,-620.38,0.00017657,2]
[361168353,1747319437422,-450.0,0.00017671,2]
[361168354,1747319437431,-551.45,0.00017671,2]
[361168355,1747319437441,-450.0,0.00017671,2]
[361168356,1747319437451,-501.33590286,0.0001768,2]
[361168357,1747319437461,-512.88946097,0.00017708,2]
[361168358,1747319437470,-471.61,0.00017716,2]
[361168359,1747319437480,-450.0,0.00017716,2]
[361168360,1747319437490,-450.0,0.00017716,2]
[361168361,1747319437499,-162.24,0.00017794,2]
[361168362,1747319437509,-151.0,0.00017794,2]
[361168363,1747319437519,-450.0,0.00017794,2]
[361168364,1747319437529,-450.0,0.00017794,2]
[361168365,1747319437539,-450.0,0.00017794,2]
[361168366,1747319437549,-620.38,0.00017794,2]
[361168367,1747319437559,-1000.0,0.000178,2]
[361168368,1747319437569,-435.09407544,0.000178,2]
[361168369,1747319437579,-435.0940753,0.000178,2]
[361168370,1747319437589,-435.0940753,0.000178,2]
[361168371,1747319437599,-435.0940753,0.000178,2]
[361168372,1747319437609,-435.0940753,0.000178,2]
[361168373,1747319437623,-435.0940753,0.000178,2]
[361168374,1747319437633,-435.0940753,0.000178,2]
[361168375,1747319437642,-435.0940753,0.000178,2]
[361168376,1747319437652,-435.0940753,0.000178,2]
[361168377,1747319437662,-435.0940753,0.000178,2]
[361168378,1747319437671,-435.0940753,0.000178,2]
[361168379,1747319437681,-435.0940753,0.000178,2]
[361168380,1747319437690,-435.0940753,0.000178,2]
[361168381,1747319437700,-435.0940753,0.000178,2]
[361168382,1747319437710,-435.0940753,0.000178,2]
[361168383,1747319437720,-435.0940753,0.000178,2]
[361168384,1747319437730,-435.0940753,0.000178,2]
[361168385,1747319437739,-435.0940753,0.000178,2]
[361168386,1747319437749,-152.057698,0.00017808,2]
[361168387,1747319437759,-450.0,0.00017808,2]
[361168388,1747319437769,-551.45,0.00017808,2]
[361168389,1747319437778,-450.0,0.00017808,2]
[361168390,1747319437789,-500.0,0.00017808,2]
[361168391,1747319437799,-471.61,0.00017853,2]
[361168392,1747319437809,-450.0,0.00017853,2]
[361168393,1747319437819,-151.0,0.00017853,2]
[361168394,1747319437829,-151.0,0.00017853,2]
[361168395,1747319437839,-450.0,0.00017853,2]
[361168396,1747319437848,-400.0,0.00017867,2]
[361168397,1747319437858,-185.817685,0.00017867,2]
[361168398,1747319437871,-151.0,0.00017867,2]
[361168399,1747319437880,-151.0,0.00017867,2]
[361168400,1747319437890,-264.734641,0.00017867,2]
[361168401,1747319437900,-264.734641,0.00017867,2]
[361168402,1747319437910,-151.0,0.00017867,2]
[361168403,1747319438033,-151.0,0.00017867,2]
[361168404,1747319438043,-151.0,0.00017867,2]
[361168405,1747319438053,-151.0,0.00017867,2]
[361168406,1747319438063,-254.645143,0.00017867,2]
[361168407,1747319438073,-254.645143,0.00017867,2]
[361168409,1747319438083,-151.0,0.00017867,2]
[361168410,1747319438092,-151.0,0.00017867,2]
[361168412,1747319438102,-151.0,0.00017867,2]
[361168414,1747319438112,-151.0,0.00017867,2]
[361168418,1747319438126,-151.0,0.00017867,2]
[361168421,1747319438140,-491.31862,0.00017867,2]
[361168423,1747319438149,-491.31862,0.00017867,2]
[361168425,1747319438158,-151.0,0.00017867,2]
[361168427,1747319438168,-151.0,0.00017867,2]
[361168430,1747319438179,-576.062218,0.00017867,2]
[361168432,1747319438188,-576.062218,0.00017867,2]
[361168434,1747319438198,-318.361772,0.00017867,2]
[361168436,1747319438207,-318.361772,0.00017867,2]
[361168438,1747319438217,-167.12951954,0.0001787,2]
[361168440,1747319438227,-151.0,0.00017871,2]
[361168442,1747319438238,-151.0,0.00017871,2]
[361168444,1747319438247,-151.0,0.00017871,2]
[361168446,1747319438257,-4843.57391613,0.00017871,2]
[361168448,1747319438267,-586.815331,0.00017871,2]
[361168450,1747319438277,-586.815331,0.00017871,2]
[361168452,1747319438287,-151.0,0.00017871,2]
[361168454,1747319438296,-210.133356,0.00017871,2]
[361168455,1747319438306,-210.133356,0.00017871,2]
[361168456,1747319438316,-151.0,0.00017871,2]
[361168457,1747319438326,-394.2765549,0.00017881,2]
[361168458,1747319438336,-450.0,0.00017931,2]
[361168459,1747319438346,-450.0,0.00017931,2]
[361168460,1747319438356,-450.0,0.00017931,2]
[361168461,1747319438369,-620.38,0.00017931,2]
[361168462,1747319438379,-356.69083056,0.00017945,2]
[361168463,1747319438388,-551.45,0.00017945,2]
[361168464,1747319438398,-450.0,0.00017945,2]
[361168465,1747319438408,-151.0,0.00017969,2]
[361168466,1747319438418,-151.0,0.00017969,2]
[361168467,1747319438428,-151.0,0.00017969,2]
[361168468,1747319438438,-151.0,0.00017969,2]
[361168469,1747319438448,-151.0,0.00017969,2]
[361168470,1747319438458,-151.0,0.00017969,2]
[361168471,1747319438468,-300.55044,0.00017969,2]
[361168472,1747319438477,-151.0,0.00017969,2]
[361168473,1747319438487,-231.643866,0.00017969,2]
[361168474,1747319438497,-231.643866,0.00017969,2]
[361168475,1747319438507,-379.39846773,0.00017969,2]
[361168498,1747319438717,-127.49504727,0.00017969,2]
[361168500,1747319438726,-506.893515,0.00017969,2]
[361168501,1747319438736,-29272.81354238,0.0001797,3]
[361168878,1747319443751,-292.10907745,0.00016835,2]
[361168880,1747319443760,-151.0,0.00016836,2]
[361168882,1747319443771,-230.512701,0.00016836,2]
[361168884,1747319443780,-151.0,0.00016836,2]
[361168886,1747319443790,-151.0,0.00016973,2]
[361168888,1747319443800,-230.512701,0.00016973,2]
[361168890,1747319443809,-151.0,0.00016973,2]
[361168892,1747319443818,-151.0,0.00017246,2]
[361168894,1747319443827,-230.512701,0.00017246,2]
[361168896,1747319443837,-151.0,0.00017246,2]
[361168898,1747319443847,-500.0,0.0001752,2]
[361168899,1747319443857,-500.0,0.0001752,2]
[361168901,1747319443867,-151.0,0.00017521,2]
[361168903,1747319443878,-230.512701,0.00017521,2]
[361168904,1747319443888,-151.0,0.00017521,2]
[361168905,1747319443897,-435.0940753,0.000178,2]
[361168906,1747319443907,-500.0,0.00017808,2]
[361168907,1747319443917,-500.0,0.00017808,2]
[361168908,1747319443927,-500.0,0.00017808,2]
[361168909,1747319443936,-500.0,0.00017808,2]
[361168910,1747319443945,-500.0,0.00017808,2]
[361168911,1747319443955,-500.0,0.00017808,2]
[361168912,1747319443964,-500.0,0.00017808,2]
[361168913,1747319443974,-542.76811257,0.00017808,2]
[361168914,1747319443983,-500.0,0.00017808,2]
[361168915,1747319443993,-316.02822381,0.00017866,2]
[361168979,1747319446921,-1682.1000002,0.00016667,14]
[361169128,1747319449593,-3317.8999998,0.00016667,14]
[361169129,1747319449603,-230.512701,0.00016836,2]
[361169130,1747319449614,-230.512701,0.00016973,2]
[361169131,1747319449627,-230.512701,0.00017246,2]
[361169132,1747319449638,-230.512701,0.00017521,2]
[361169133,1747319449648,-119.06585149,0.00017866,2]
[361169134,1747319449658,-151.0,0.00017867,2]
[361169135,1747319449668,-230.512701,0.00017867,2]
[361169136,1747319449678,-290.68075,0.00017867,2]
[361169137,1747319449688,-230.512701,0.00017867,2]
[361169138,1747319449697,-435.0940753,0.00017969,2]
[361169139,1747319449707,-18520.22079327,0.0001797,3]
[361169140,1747319449855,-51944.66729664,0.0001797,3]
[361169141,1747319449867,-5089.5,0.0001797,3]
[361169142,1747319449934,-0.11316783,0.0001797,3]
[361169144,1747320026070,-207.61470232,0.00013562,2]
[361169145,1747320030154,-400.0,0.00013562,2]
[361169146,1747320031641,-235.60804932,0.00013562,2]
[361169147,1747320038261,-156.77724836,0.00013562,2]
[361169148,1747320392977,161.546256,0.00027397,120]
[361169152,1747320427120,-5000.0,0.00013562,2]
[361169153,1747320427143,-177.134196,0.00013699,2]
[361169154,1747320427166,-403.9870581,0.0001583,2]
[361169155,1747320427189,-300.0,0.00015998,2]
[361169156,1747320427210,-300.0,0.00015999,2]
[361169157,1747320427231,-300.0,0.00015999,2]
[361169158,1747320427254,-300.0,0.00015999,2]
[361169159,1747320427274,-5000.0,0.00016,2]
[361169160,1747320427295,-172.47673772,0.00016338,2]
[361169161,1747320427315,-5000.0,0.00016416,2]
[361169162,1747320427336,-492.09741395,0.00016438,2]
[361169163,1747320427357,-400.0,0.00016438,2]
[361169164,1747320427378,-400.0,0.00016438,2]
[361169165,1747320427398,-422.24322305,0.00016438,2]
[361169166,1747320427421,-450.0,0.00016438,2]
[361169167,1747320427442,-400.0,0.00016438,2]
[361169168,1747320427466,-573.36,0.00016438,2]
[361169169,1747320427488,-450.0,0.00016438,2]
[361169170,1747320427510,-450.0,0.00016438,2]
[361169171,1747320427534,-247.69486568,0.00016438,2]
[361169172,1747320427559,-399.0402445,0.00016438,2]
[361169173,1747320441143,-5000.0,0.00015974,14]
[361169174,1747320441169,-180.62418459,0.00016135,2]
[361169175,1747320441198,-132.1197555,0.00016438,2]
[361169176,1747320441222,-450.0,0.00016438,2]
[361169177,1747320441247,-450.0,0.00016438,2]
[361169178,1747320441272,-450.0,0.00016438,2]
[361169179,1747320441295,-400.0,0.00016438,2]
[361169180,1747320441318,-400.0,0.00016438,2]
[361169181,1747320441342,-535.5,0.00016438,2]
[361169182,1747320441366,-450.0,0.00016438,2]
[361169183,1747320441389,-249.26023846,0.00016438,2]
[361169184,1747320441412,-400.0,0.00016438,2]
[361169185,1747320441437,-450.0,0.00016438,2]
[361169186,1747320441465,-450.0,0.00016438,2]
[361169187,1747320441489,-414.53,0.00016438,2]
[361169188,1747320441514,-450.0,0.00016438,2]
[361169189,1747320441539,-400.0,0.00016438,2]
[361169190,1747320441563,-450.0,0.00016438,2]
[361169191,1747320441586,-450.0,0.00016438,2]
[361169192,1747320441609,-400.0,0.00016438,2]
[361169193,1747320441633,-450.0,0.00016438,2]
[361169194,1747320441658,-400.0,0.00016438,2]
[361169195,1747320441684,-400.0,0.00016438,2]
[361169196,1747320441708,-450.0,0.00016438,2]
[361169197,1747320441732,-400.0,0.00016438,2]
[361169198,1747320441756,-500.0,0.00016438,2]
[361169199,1747320441780,-400.0,0.00016438,2]
[361169200,1747320441805,-450.0,0.00016438,2]
[361169201,1747320441829,-450.0,0.00016438,2]
[361169202,1747320441853,-400.0,0.00016438,2]
[361169203,1747320441878,-573.49,0.00016438,2]
[361169204,1747320441902,-450.0,0.00016438,2]
[361169205,1747320441927,-450.0,0.00016438,2]
[361169206,1747320441951,-450.0,0.00016438,2]
[361169207,1747320441975,-400.0,0.00016438,2]
[361169208,1747320441998,-400.0,0.00016438,2]
[361169209,1747320442022,-450.0,0.00016438,2]
[361169210,1747320442045,-450.0,0.00016438,2]
[361169211,1747320442069,-450.0,0.00016438,2]
[361169212,1747320442095,-450.0,0.00016438,2]
[361169213,1747320442287,-400.0,0.00016438,2]
[361169214,1747320442316,-400.0,0.00016438,2]
[361169215,1747320442338,-450.0,0.00016438,2]
[361169216,1747320442361,-171.33601702,0.00016438,2]
[361169217,1747320442382,-400.0,0.00016438,2]
[361169218,1747320442404,-400.0,0.00016438,2]
[361169219,1747320442428,-450.0,0.00016438,2]
[361169220,1747320442454,-450.0,0.00016438,2]
[361169221,1747320442475,-400.0,0.00016438,2]
[361169222,1747320442498,-450.0,0.00016438,2]
[361169223,1747320442521,-400.0,0.00016438,2]
[361169224,1747320442547,-450.0,0.00016438,2]
[361169225,1747320442569,-400.0,0.00016438,2]
[361169226,1747320442592,-450.0,0.00016438,2]
[361169227,1747320442614,-450.0,0.00016438,2]
[361169228,1747320442636,-401.46806045,0.00016438,2]
[361169229,1747320442659,-450.0,0.00016438,2]
[361169230,1747320442687,-450.0,0.00016438,2]
[361169231,1747320442708,-400.0,0.00016438,2]
[361169232,1747320442730,-409.46114614,0.00016438,2]
[361169233,1747320442755,-505.92,0.00016438,2]
[361169234,1747320442778,-450.0,0.00016438,2]
[361169235,1747320442800,-400.0,0.00016438,2]
[361169236,1747320442823,-400.0,0.00016438,2]
[361169237,1747320442844,-400.0,0.00016438,2]
[361169238,1747320442866,-400.0,0.00016438,2]
[361169239,1747320442888,-450.0,0.00016438,2]
[361169240,1747320442910,-411.16,0.00016438,2]
[361169241,1747320442936,-400.0,0.00016438,2]
[361169242,1747320442958,-400.0,0.00016438,2]
[361169243,1747320442979,-400.0,0.00016438,2]
[361169244,1747320443001,-450.0,0.00016438,2]
[361169245,1747320443024,-450.0,0.00016438,2]
[361169246,1747320443046,-400.0,0.00016438,2]
[361169247,1747320443067,-543.73,0.00016438,2]
[361169248,1747320443091,-400.0,0.00016438,2]
[361169249,1747320443112,-400.0,0.00016438,2]
[361169250,1747320443133,-400.0,0.00016438,2]
[361169251,1747320443154,-450.0,0.00016438,2]
[361169252,1747320443179,-400.0,0.00016438,2]
[361169253,1747320443201,-569.76,0.00016438,2]
[361169254,1747320443221,-400.0,0.00016438,2]
[361169255,1747320443242,-403.04,0.00016438,2]
[361169256,1747320443263,-450.0,0.00016438,2]
[361169257,1747320443284,-450.0,0.00016438,2]
[361169258,1747320443305,-400.0,0.00016438,2]
[361169259,1747320443326,-372.32663539,0.00016438,2]
[361169260,1747320443347,-400.0,0.00016438,2]
[361169261,1747320443368,-466.46,0.00016438,2]
[361169262,1747320443388,-363.05453706,0.00016438,2]
[361169263,1747320443409,-400.0,0.00016573,2]
[361169264,1747320443432,-400.0,0.00016574,2]
[361169265,1747320443458,-450.0,0.00016574,2]
[361169266,1747320443479,-450.0,0.00016574,2]
[361169267,1747320443500,-262.39795607,0.00016574,2]
[361169268,1747320443522,-450.0,0.00016575,2]
[361169269,1747320443545,-402.15,0.00016575,2]
[361169270,1747320443567,-249.36,0.00016575,2]
[361169271,1747320443589,-425.41,0.00016575,2]
[361169272,1747320443611,-588.91,0.00016575,2]
[361169273,1747320443633,-450.0,0.00016575,2]
[361169274,1747320443654,-257.19,0.00016575,2]
[361169275,1747320443677,-176.79,0.00016575,2]
[361169276,1747320443697,-450.0,0.00016575,2]
[361169277,1747320443718,-300.4802167,0.00016575,2]
[361169278,1747320443739,-450.0,0.00016575,2]
[361169279,1747320443762,-178.36,0.00016575,2]
[361169280,1747320443783,-450.0,0.00016575,2]
[361169281,1747320443805,-589.47,0.00016575,2]
[361169282,1747320443828,-338.71,0.00016575,2]
[361169283,1747320443850,-313.81,0.00016575,2]
[361169284,1747320443872,-574.58,0.00016575,2]
[361169285,1747320443894,-450.0,0.00016575,2]
[361169286,1747320443915,-450.0,0.00016575,2]
[361169287,1747320443938,-450.0,0.00016575,2]
[361169288,1747320443961,-450.0,0.00016575,2]
[361169289,1747320443984,-222.65,0.00016575,2]
[361169290,1747320444007,-450.0,0.00016575,2]
[361169291,1747320444029,-193.13,0.00016575,2]
[361169292,1747320444049,-272.01,0.00016575,2]
[361169293,1747320444071,-247.7,0.00016575,2]
[361169294,1747320444092,-557.18,0.00016575,2]
[361169295,1747320444112,-207.81,0.00016575,2]
[361169296,1747320444134,-264.01,0.00016575,2]
[361169297,1747320444157,-450.0,0.00016575,2]
[361169298,1747320444183,-450.0,0.00016575,2]
[361169299,1747320444206,-450.0,0.00016575,2]
[361169300,1747320444228,-189.52,0.00016575,2]
[361169301,1747320444250,-450.0,0.00016575,2]
[361169302,1747320444272,-377.37,0.00016575,2]
[361169303,1747320444293,-450.0,0.00016575,2]
[361169304,1747320444315,-450.0,0.00016575,2]
[361169305,1747320444336,-450.0,0.00016575,2]
[361169306,1747320444357,-198.88,0.00016575,2]
[361169307,1747320444380,-450.0,0.00016711,2]
[361169308,1747320444401,-450.0,0.00016711,2]
[361169309,1747320444423,-173.21,0.00016712,2]
[361169310,1747320444447,-450.0,0.00016712,2]
[361169311,1747320444473,-548.18,0.00016712,2]
[361169312,1747320444496,-260.39,0.00016712,2]
[361169313,1747320444519,-232.7,0.00016712,2]
[361169314,1747320444544,-450.0,0.00016712,2]
[361169315,1747320444568,-292.94067759,0.00016712,2]
[361169316,1747320444590,-472.82,0.00016712,2]
[361169317,1747320444611,-450.0,0.00016712,2]
[361169318,1747320444634,-450.0,0.00016712,2]
[361169319,1747320444659,-159.17222406,0.00016712,2]
[361169320,1747320444683,-450.0,0.00016712,2]
[361169321,1747320444709,-450.0,0.00016712,2]
[361169322,1747320444731,-271.03,0.00016712,2]
[361169323,1747320444753,-300.05,0.00016712,2]
[361169324,1747320444776,-450.0,0.00016712,2]
[361169325,1747320444799,-450.0,0.00016712,2]
[361169326,1747320444820,-240.66650814,0.00016735,2]
[361169327,1747320444841,-153.0,0.00016778,2]
[361169328,1747320444863,-157.9828156,0.00016778,2]
[361169329,1747320444885,-1739.66,0.00016825,3]
[361169330,1747320444907,-869.83,0.00016825,3]
[361169331,1747320444930,-434.91,0.00016825,3]
[361169332,1747320444951,-217.46,0.00016825,3]
[361169333,1747320444973,-652.4,0.00016825,3]
[361169334,1747320444994,-239.66079438,0.00016827,2]
[361169335,1747320445017,-500.0,0.00016834,2]
[361169336,1747320445040,-500.0,0.00016834,2]
[361169337,1747320445061,-368.20504436,0.00016834,2]
[361169338,1747320445083,-500.0,0.00016834,2]
[361169339,1747320445104,-490.73040789,0.00016834,2]
[361169340,1747320445123,-400.0,0.00016835,2]
[361169341,1747320445145,-209.37479878,0.00016835,2]
[361169342,1747320445166,-450.0,0.00016835,2]
[361169343,1747320445191,-400.0,0.00016835,2]
[361169344,1747320445212,-470.0,0.00016835,2]
[361169345,1747320445233,-400.0,0.00016835,2]
[361169346,1747320445254,-450.0,0.00016835,2]
[361169347,1747320445276,-450.0,0.00016835,2]
[361169348,1747320445297,-400.0,0.00016835,2]
[361169349,1747320445319,-450.0,0.00016835,2]
[361169350,1747320445340,-400.0,0.00016835,2]
[361169351,1747320445361,-400.0,0.00016835,2]
[361169352,1747320445381,-450.0,0.00016835,2]
[361169353,1747320445401,-528.48,0.00016835,2]
[361169354,1747320445434,-400.0,0.00016835,2]
[361169355,1747320445459,-488.25,0.00016835,2]
[361169356,1747320445481,-409.49,0.00016835,2]
[361169357,1747320445504,-448.15,0.00016835,2]
[361169358,1747320445526,-400.0,0.00016835,2]
[361169359,1747320445671,-450.0,0.00016835,2]
[361169360,1747320445703,-450.0,0.00016835,2]
[361169361,1747320445729,-400.0,0.00016835,2]
[361169362,1747320445753,-400.0,0.00016835,2]
[361169363,1747320445777,-400.0,0.00016835,2]
[361169364,1747320445800,-400.0,0.00016835,2]
[361169365,1747320445823,-400.0,0.00016835,2]
[361169366,1747320445846,-400.0,0.00016835,2]
[361169367,1747320445867,-400.0,0.00016835,2]
[361169368,1747320445889,-189.62203708,0.00016835,2]
[361169369,1747320445912,-400.0,0.00016835,2]
[361169370,1747320445939,-400.0,0.00016835,2]
[361169371,1747320445961,-400.0,0.00016835,2]
[361169372,1747320445982,-400.0,0.00016835,2]
[361169373,1747320446004,-450.0,0.00016835,2]
[361169374,1747320446026,-400.0,0.00016835,2]
[361169375,1747320446047,-400.0,0.00016835,2]
[361169376,1747320446069,-400.0,0.00016835,2]
[361169377,1747320446091,-400.0,0.00016835,2]
[361169378,1747320446112,-400.0,0.00016835,2]
[361169379,1747320446134,-400.0,0.00016835,2]
[361169380,1747320446156,-400.0,0.00016835,2]
[361169381,1747320446181,-404.39,0.00016835,2]
[361169382,1747320446204,-450.0,0.00016835,2]
[361169383,1747320446225,-400.0,0.00016835,2]
[361169384,1747320446247,-400.0,0.00016835,2]
[361169385,1747320446268,-493.48,0.00016835,2]
[361169386,1747320446289,-563.87,0.00016835,2]
[361169387,1747320446311,-400.0,0.00016835,2]
[361169388,1747320446332,-400.0,0.00016835,2]
[361169389,1747320446354,-400.0,0.00016835,2]